Workbook

Sheet Kursus
A1: Budget
B2: Kursus/ydelse
B4: Kort beskrivelse af kurset og forløbet eller ydelsen
B6: Bevillingsgiver (virksomhed)
B8: Ansvarlig VIP
B10: Dato
B12: Tid
B14: Sted
B16: Antal dage/timer
B18: Antal forløb | D18: 1
B19: =+IF(B18="Antal forløb","Aftalt pris for et samlet forløb","Individuel pris pr. person - ekskl. moms") -> Aftalt pris for et samlet forløb | D19: 0
B20: Samlet indtægt | D20: =+D18*D19 -> 0
A22: Udgifter
A24: Løn til dig og dine kollegaer | B24: Titel | C24: Direkte arbejdstimer | D24: Timer for kørsel | E24: Arbejdstimer i alt | F24: Beløb
B25: Vælg titel… | C25: 0 | D25: 0 | E25: =+C25+D25 -> 0 | F25: =+VLOOKUP(B25,kostprisVIP,2,FALSE)*E25 -> 0
B26: Vælg titel… | C26: 0 | D26: 0 | E26: =+C26+D26 -> 0 | F26: =+VLOOKUP(B26,kostprisVIP,2,FALSE)*E26 -> 0
B27: Vælg titel… | C27: 0 | D27: 0 | E27: 0 | F27: 0
B28: Vælg titel… | C28: 0 | D28: 0 | E28: 0 | F28: 0
B29: Vælg titel… | C29: 0 | D29: 0 | E29: 0 | F29: 0
B30: Vælg titel… | C30: 0 | D30: 0 | E30: 0 | F30: 0
B31: Vælg titel… | C31: 0 | D31: 0 | E31: 0 | F31: 0
B32: Vælg titel… | C32: 0 | D32: 0 | E32: 0 | F32: 0
B33: Vælg titel… | C33: 0 | D33: 0 | E33: 0 | F33: 0
B34: Vælg titel… | C34: 0 | D34: 0 | E34: 0 | F34: 0
B36: Honoraraflønning (ikke ansat på SDU) | F36: 0
B38: Konsulentydelser – ekstern underviser med CVR nummer: | F38: 0
A40: Admini-stration | B40: Opgave | C40: Titel | D40: Arbejdstimer i alt | E40: Timeløn | F40: Beløb
B41: Kursusadministration | C41: AC, fuldmægtig | D41: 0 | E41: =+VLOOKUP(C41,Lopslag!$H$20:$K$26,2,FALSE) -> 381 | F41: =+D41*E41 -> 0
B42: Kommunikation | C42: AC, fuldmægtig | D42: 0 | E42: =+VLOOKUP(C42,Lopslag!$H$20:$K$26,2,FALSE) -> 381 | F42: =+D42*E42 -> 0
B43: Studentermedhjælp | C43: Studentermedhjælp HK | D43: 0 | E43: =+VLOOKUP(C43,Lopslag!$H$20:$K$26,2,FALSE) -> 160 | F43: =+D43*E43 -> 0
A45: Øvrig drift | B45: Rejseudgifter via zExpense- underviser og konsulenter | F45: 0
B46: SDU-forplejning - deltagerer og undervisere - pris pr. deltager | E46: 0 | F46: =+E46*(D18+COUNTIF(E25:E32,">0")) -> 0
B47: Markedsføring - trykt på SDU | F47: 0
B48: Øvrig drift - andre SDU omkostninger | F48: 0
B50: Leje af lokale til undervisning (på SDU) - pris kan fås ved henvendelse til 8888@sdu.dk | F50: 0
B52: Leje af lokale til undervisning (ikke på SDU) | F52: 0
B54: Forplejning: | E54: Beløb pr. deltager
B55: * Hotel-konferencepakke – hel dag | E55: 0 | F55: =+E55*($D$18+COUNTIF($E$25:$E$34,">0")) -> 0
B56: * Hotel-pakke – halv dag | E56: 0 | F56: =+E56*($D$18+C56) -> 0
B58: Indkvartering/Hotelovernatning – kursister | E58: 0 | F58: =+E58*D18 -> 0
B60: Kursusmateriale (direkte udgifter til artikler/bøger mv) - ikke leveret af SDU | E60: 0 | F60: =+E60*D18 -> 0
B61: Markedsføring (direkte udgifter, annoncer, tryksager mv.) - ikke leveret af SDU | F61: 0
B63: =IF(D63=0,"Vingaver",CONCATENATE("Vingaver - køb af ",D63," stk. "," - pris pr. vingave kr. ",E63)) -> Vingaver | C63: Antal vingaver | D63: 0 | E63: 150 | F63: =+D63*E63 -> 0
B64: Øvrig drift | F64: 0
B66: I alt direkte projektomkostninger | F66: =+SUM(F25:F64) -> 0
B68: Overhead - Beregnes automatisk | F68: =+F77+F78 -> 0
B70: Minimumspris | F70: =+F68+F66 -> 0
B72: Ønsket overskud | F72: 0
B74: Salgspris | F74: =+F72+F70 -> 0
A76: Projektudgifter SDU IV-regler - beregnet på baggrund af indtægt
B77: =+CONCATENATE("Overhead af direkte omkostninger ","(",Lopslag!I33*100," %",")") -> Overhead af direkte omkostninger (120 %) | F77: =+(SUM(F25:F34)+SUM(F41:F43))*(Lopslag!I33) -> 0
B78: =+CONCATENATE("Overhead af konsulentomkostninger ","(",Lopslag!I34*100," %",")") -> Overhead af konsulentomkostninger (10 %) | F78: =+((SUM(F45:F64))+F36+F38)*(Lopslag!I34) -> 0
B79: Overskud/underskud overført til UK10 | E79: =+IF(F79<0,"Denne må ikke være negativ, da projektet skal give overskud i henhold til gældende regelsæt"," ") ->  | F79: =+D20-F66-F77-F78 -> 0
B80: Direkte projektomkostninger | F80: =+F66 -> 0
B81: Udgifter i alt (= samlede indtægter) | F81: =SUM(F77:F80) -> 0

Sheet TAP-Økonomiark
B2: UK90-aktivitet til afrapporteringsskema
B3: Løn | C3: =+SUM(Kursus!F25:F36)+SUM(Kursus!F41:F43) -> 0
B4: Drift | C4: =+Kursus!D20-'TAP-Økonomiark'!C3 -> 0
B5: Total | C5: =SUM(C3:C4) -> 0
B7: Påvirkning af instituttets indtægter på ordinær økonomi (UK10)
B8: OH indtægt | C8: =+Kursus!F77+Kursus!F78 -> 0
B9: Projektafgift (10% af alle udgifter) | C9: =-0.1*C5 -> 0
B10: Overskud/underskud til institut | C10: =+Kursus!F79 -> 0
B11: Samlet resultat til fordeling efter projektafgift | C11: =SUM(C8:C10) -> 0
B13: Intern SDU-afregning
B15: Beregninger tager udgangspunkt i følgende:
B16: =+Kursus!B18 -> Antal forløb | E16: =+Kursus!D18 -> 1
B17: =+Kursus!B19 -> Aftalt pris for et samlet forløb | E17: =+Kursus!D19 -> 0
B19: Samlet overskud
B20: Overhead | E20: =+Kursus!F77+Kursus!F78 -> 0
B21: Overskud | E21: =+Kursus!F79 -> 0
B22: Total | E22: =SUM(E20:E21) -> 0
B24: Administration - skal dækkes af overskuddet | D24: Omk.sted | E24: =+SUM(E25:E27) -> 0
B25: Rektor/fællesadministration - Projektafgift 10% | D25: 99999 | E25: =+Kursus!D20*0.1 -> 0
B26: Økonomiadministration | E26: 0
B27: Administrativ support - Conference Manager samt koordinering | E27: 0
B28: Rest af overskud | E28: =+E22-E25 -> 0
B30: VIP - Andel pr. institut - direkte aflønning af arbejdstimer | C30: Navn - skriv selv | D30: Timer til bogføring | E30: Beløb på projektet | F30: "Faglig erfaring, - netværk og - udvikling" - antal timer | G30: Omregnet til beløb
B31: =+Kursus!B25 -> Vælg titel… | D31: =+Kursus!E25 -> 0 | E31: =+Kursus!F25 -> 0 | F31: 50 | G31: =+F31*(VLOOKUP(B31,Lopslag!$H$4:$K$15,2,FALSE)) -> 0
B32: =+Kursus!B26 -> Vælg titel… | D32: =+Kursus!E26 -> 0 | E32: =+Kursus!F26 -> 0 | F32: 10 | G32: =+F32*(VLOOKUP(B32,Lopslag!$H$4:$K$15,2,FALSE)) -> 0
B33: =+Kursus!B27 -> Vælg titel… | D33: =+Kursus!E27 -> 0 | E33: =+Kursus!F27 -> 0 | F33: 0 | G33: =+F33*(VLOOKUP(B33,Lopslag!$H$4:$K$15,2,FALSE)) -> 0
B34: =+Kursus!B28 -> Vælg titel… | D34: =+Kursus!E28 -> 0 | E34: =+Kursus!F28 -> 0 | F34: 0 | G34: =+F34*(VLOOKUP(B34,Lopslag!$H$4:$K$15,2,FALSE)) -> 0
B35: =+Kursus!B29 -> Vælg titel… | D35: =+Kursus!E29 -> 0 | E35: =+Kursus!F29 -> 0 | F35: 0 | G35: =+F35*(VLOOKUP(B35,Lopslag!$H$4:$K$15,2,FALSE)) -> 0
B36: =+Kursus!B30 -> Vælg titel… | D36: =+Kursus!E30 -> 0 | E36: =+Kursus!F30 -> 0 | F36: 0 | G36: =+F36*(VLOOKUP(B36,Lopslag!$H$4:$K$15,2,FALSE)) -> 0
B37: =+Kursus!B31 -> Vælg titel… | D37: =+Kursus!E31 -> 0 | E37: =+Kursus!F31 -> 0 | F37: 0 | G37: =+F37*(VLOOKUP(B37,Lopslag!$H$4:$K$15,2,FALSE)) -> 0
B38: =+Kursus!B32 -> Vælg titel… | D38: =+Kursus!E32 -> 0 | E38: =+Kursus!F32 -> 0 | F38: 0 | G38: =+F38*(VLOOKUP(B38,Lopslag!$H$4:$K$15,2,FALSE)) -> 0
B39: =+Kursus!B33 -> Vælg titel… | D39: =+Kursus!E33 -> 0 | E39: =+Kursus!F33 -> 0 | F39: 0 | G39: =+F39*(VLOOKUP(B39,Lopslag!$H$4:$K$15,2,FALSE)) -> 0
B40: =+Kursus!B34 -> Vælg titel… | D40: =+Kursus!E34 -> 0 | E40: =+Kursus!F34 -> 0 | F40: 0 | G40: =+F40*(VLOOKUP(B40,Lopslag!$H$4:$K$15,2,FALSE)) -> 0
B42: Intern fordeling/disponering af overskud
B43: Fordeling af overhead og overskud | D43: =+E22 -> 0 | E43: Bemærkning
B44: Rektor = 10% projektafgift | D44: =-C5*0.1 -> 0 | E44: 99999
B45: Økonomiadministration | D45: 0
B46: =+B27 -> Administrativ support - Conference Manager samt koordinering | D46: =-E27 -> 0
B47: Rest overskud - evt. disponering efter aftale med ansvarlig VIP | D47: =+D43+SUM(D44:D46) -> 0 | E47: Bemærkning
B48: Engangsvederlag | C48: Forsker XX | D48: 0 | E48: Løn
B49: Konference til USA | C49: Forsker YY | D49: 0 | E49: Drift
B50: "Faglig erfaring, - netværk og - udvikling" | D50: =+SUM(G31:G40) -> 0
B57: Rest til enhed | D57: =+D47-SUM(D48:D56) -> 0

Sheet Grønt ark til upload i ERP
A1: Projekttype: | C1: T-01 - STANDARD | E1: Data/tekst er hentet automatisk fra øvrige ark, men kan overskrives ved behov.
A3: Dato for budgetudarbejdelse: | C3: 2024-07-01
A4: Indeværende år | C4: 2024
A6: Dato for budgetstart: | C6: 2024-12-01 | E6: Kun farvede felter skal udfyldes!
A7: Dato for budgetslut: | C7: 2024-12-31
A9: Projektnummer: | C9: =+_xlfn.CONCAT(90,"-",'[7]1. Budgetark - aktivitet'!B22," - xxxxxxx") -> 90- - xxxxxxx
A10: Projekt-titel: | C10: =+Kursus!C2 -> 0
A11: Bevillingshaver: | C11: =+Kursus!C8 -> 0
A12: Overhead:
A14: Bevillingsgiver: | C14: =+Kursus!C6 -> 0
A15: Samlet bevillling i alt: | C15: =+Kursus!D20 -> 0
A17: Underkonto | B17: Analyse Nr. | C17: Opgavenavn | D17: Artskonto | E17: =+C4 -> 2024 | F17: =E17+1 -> 2025 | G17: =F17+1 -> 2026 | H17: =G17+1 -> 2027 | I17: =H17+1 -> 2028 | J17: =I17+1 -> 2029 | K17: =+J17+1 -> 2030 | L17: =+K17+1 -> 2031 | M17: =+L17+1 -> 2032 | N17: =+M17+1 -> 2033 | O17: Hovedtotal | P17: Meddelelser
E18: Total | F18: Total | G18: Total | H18: Total | I18: Total | J18: Total | K18: =+J18 -> Total | L18: =+K18 -> Total | M18: =+L18 -> Total | N18: =+L18 -> Total | O18: Dkk
A20: UK 90, 95 el. 97 | B20: 01100 | C20: [T01 VIP-løn] | D20: 180000 | O20: =SUM(E20:N20) -> 0
B21: 01110 | C21: [T01 VIP-løn] Frikøb/Omkontering | D21: 180000 | E21: =+'[7]1. Budgetark - aktivitet'!C38 -> 0 | O21: 0
B22: 01120 | C22: [T01 VIP-løn] Ratetilpasning | D22: 180000 | O22: 0
B23: 01130 | C23: [T01 VIP-løn] Ph.D | D23: 180000 | O23: 0
B24: 01140 | C24: [T01 VIP-løn] Post Doc | D24: 180000 | O24: 0
B25: 01150 | C25: [T01 VIP-løn] Videnskabelig assistent | D25: 180000 | O25: 0
B27: 01200 | C27: [T01 TAP-løn] | D27: 180000 | E27: =+'[7]1. Budgetark - aktivitet'!C44 -> 0 | O27: =SUM(E27:N27) -> 0
B28: 01210 | C28: [T01 TAP-løn] Frikøb/Omkontering | D28: 180000 | E28: =+'[7]1. Budgetark - aktivitet'!C45 -> 0 | O28: 0
B29: 01220 | C29: [T01 TAP-løn] Ratetilpasning | D29: 180000 | O29: 0
B30: 01230 | C30: [T01 TAP-løn] Studentermedhjælp | D30: 180000 | E30: =+'[7]1. Budgetark - aktivitet'!C43 -> 0 | O30: 0
B31: 01240 | C31: [T01 TAP-løn] Sekretær | D31: 180000 | O31: 0
B32: 01250 | C32: [T01 TAP-løn] Laborant | D32: 180000 | O32: 0
B34: 01300 | C34: [T01 Rejser] | D34: 220000 | O34: =SUM(E34:N34) -> 0
B35: 01301 | C35: [T01 Rejser] | D35: 220000 | O35: =SUM(E35:N35) -> 0
B36: 01303 | C36: [T01 Rejser] | D36: 220000 | O36: =SUM(E36:N36) -> 0
B38: 01400 | C38: [T01 Drift] | D38: 220000 | E38: =+'[7]1. Budgetark - aktivitet'!C70 -> 0 | O38: =SUM(E38:N38) -> 0
B39: 01401 | C39: [T01 Drift] Småanskaffelser | D39: 220000 | O39: 0
B40: 01402 | C40: [T01 Drift] Formidling | D40: 220000 | O40: 0
B41: 01403 | C41: [T01 Drift] Dataindsamling | D41: 220000 | O41: 0
B42: 01404 | C42: [T01 Drift] Publicering | D42: 220000 | O42: 0
B43: 01405 | C43: [T01 Drift] Ph.D udgifter | D43: 220000 | O43: 0
B44: 01406 | C44: [T01 Drift] Konsulentudgifter | D44: 220000 | E44: =+'[7]1. Budgetark - aktivitet'!C49 -> 0 | O44: 0
B45: 01407 | C45: [T01 Drift] Øvrige honorarer | D45: 220000 | O45: 0
B46: 01408 | C46: [T01 Drift] Gæsteprofessorer | D46: 220000 | O46: 0
B48: 01500 | C48: [T01 Taxametertilskud] | D48: 220000 | O48: =SUM(E48:N48) -> 0
B50: 01990 | C50: [T01 Overskud UK90] | D50: 431085 | E50: =+'[7]1. Budgetark - aktivitet'!C74 -> 0 | O50: =SUM(E50:N50) -> 0
B51: 01400 | C51: [T01 Intern afregning UK90] | D51: 431082 | O51: =SUM(E51:N51) -> 0
B53: 01600 | C53: [T01 Apparatur] over kr. 100.000,- | D53: 220000 | O53: =SUM(E53:N53) -> 0
B54: 01650 | C54: [T01 Apparatur] under kr. 100.000,- | D54: 220000 | O54: =SUM(E54:N54) -> 0
B56: 09990 | C56: Overhead | D56: 431000 | E56: =SUM(E20:E49,E51:E54)*$C$12/100 -> 0 | F56: =SUM(F20:F49,F51:F54)*$C$12/100 -> 0 | G56: =SUM(G20:G49,G51:G54)*$C$12/100 -> 0 | H56: 0 | I56: 0 | J56: 0 | K56: 0 | L56: 0 | M56: 0 | N56: 0 | O56: =SUM(E56:N56) -> 0
A57: UK10 | B57: 01100 | C57: [T01 VIP-løn] | D57: 180000 | O57: 0
B58: 01110 | C58: [T01 VIP-løn] Frikøb/Omkontering | D58: 180000 | O58: 0
B59: 01120 | C59: [T01 VIP-løn] Ratetilpasning | D59: 180000 | O59: 0
B60: 01130 | C60: [T01 VIP-løn] Ph.D | D60: 180000 | O60: 0
B61: 01140 | C61: [T01 VIP-løn] Post Doc | D61: 180000 | O61: 0
B62: 01150 | C62: [T01 VIP-løn] Videnskabelig assistent | D62: 180000 | O62: 0
B64: 01200 | C64: [T01 TAP-løn] | D64: 180000 | O64: =SUM(E64:N64) -> 0
B65: 01210 | C65: [T01 TAP-løn] Frikøb/Omkontering | D65: 180000 | O65: 0
B66: 01220 | C66: [T01 TAP-løn] Ratetilpasning | D66: 180000 | O66: 0
B67: 01230 | C67: [T01 TAP-løn] Studentermedhjælp | D67: 180000 | O67: 0
B68: 01240 | C68: [T01 TAP-løn] Sekretær | D68: 180000 | O68: 0
B69: 01250 | C69: [T01 TAP-løn] Laborant | D69: 180000 | O69: 0
B71: 01300 | C71: [T01 Rejser] | D71: 220000 | O71: =SUM(E71:N71) -> 0
B72: 01301 | C72: [T01 Rejser] | D72: 220000 | O72: =SUM(E72:N72) -> 0
B73: 01303 | C73: [T01 Rejser] | D73: 220000 | O73: =SUM(E73:N73) -> 0
B75: 01400 | C75: [T01 Drift] | D75: 220000 | O75: =SUM(E75:N75) -> 0
B76: 01401 | C76: [T01 Drift] Småanskaffelser | D76: 220000 | O76: 0
B77: 01402 | C77: [T01 Drift] Formidling | D77: 220000 | O77: 0
B78: 01403 | C78: [T01 Drift] Dataindsamling | D78: 220000 | O78: 0
B79: 01404 | C79: [T01 Drift] Publicering | D79: 220000 | O79: 0
B80: 01405 | C80: [T01 Drift] Ph.D udgifter | D80: 220000 | O80: 0
B81: 01406 | C81: [T01 Drift] Konsulentudgifter | D81: 220000 | O81: 0
B82: 01407 | C82: [T01 Drift] Øvrige honorarer | D82: 220000 | O82: 0
B83: 01408 | C83: [T01 Drift] Gæsteprofessorer | D83: 220000 | O83: 0
B85: 01500 | C85: [T01 Taxametertilskud] | D85: 220000 | O85: =SUM(E85:N85) -> 0
B87: 01600 | C87: [T01 Apparatur] over kr. 100.000,- | D87: 220000 | O87: =SUM(E87:N87) -> 0
B88: 01650 | C88: [T01 Apparatur] under kr. 100.000,- | D88: 220000 | O88: =SUM(E88:N88) -> 0
B90: 09990 | C90: Medfinansieret Overhead | D90: 431000 | E90: =SUM(E57:E89)*$C$12/100 -> 0 | F90: 0 | G90: 0 | H90: 0 | I90: 0 | J90: 0 | K90: 0 | L90: 0 | M90: 0 | N90: 0 | O90: =SUM(E90:N90) -> 0
A93: I alt | E93: =SUM(E20:E92) -> 0 | F93: 0 | G93: 0 | H93: 0 | I93: 0 | J93: 0 | K93: 0 | L93: 0 | M93: 0 | N93: 0 | O93: =SUM(E93:N93) -> 0
A96: NB! Såfremt der er brug for yderligere linjer, indsæt da selv flere linier.

Sheet Lopslag
H1: VIP-projektmedarbejder
A2: Institut | B2: EAN | C2: omk | D2: kort navn | E2: institutleder | F2: Økonomimedarb. | H2: Stilling - kostpris tilrettet - 2024 priser | I2: KOST PRIS pr. time | K2: IDV-Salgspris pr. time
A3: Vælg arbejdssted… | K3: 1.2
A4: SAMF FØS | B4: 5798000423190 | C4: 59000 | D4: SAM FØS | E4: Torben Durck Johansen | F4: Tanja H. Hansen | H4: Vælg titel… | I4: 0 | K4: =CEILING(I4+(I4*($K$3)),10) -> 0
A5: SAMF UDD | B5: 5798000423190 | C5: 59100 | D5: SAM UDD | E5: Annette Schmidt | F5: Tanja H. Hansen | H5: Adjunkt | I5: 381 | K5: =CEILING(I5+(I5*($K$3)),10) -> 840
H6: Ingeniør | I6: 450 | K6: =CEILING(I6+(I6*($K$3)),10) -> 990
A7: Institut for Erhverv og Bæredygtighed | B7: 5798000423237 | C7: 52400 | D7: IEB | E7: Christian Elmelund-Præstekær | F7: Hanne Damkjær/Anette Skov Johnsen | H7: Ekstern lektor | I7: 320 | K7: 710
A8: Økonomisk Institut | B8: 5798000423251 | C8: 52600 | D8: ECON | E8: Lone Grønbæk | F8: Astrid Holm Nielsen | H8: Lektor | I8: 455 | K8: 1010
A9: Juridisk Institut | B9: 5798000423305 | C9: 55500 | D9: JURA | E9: Hanne Søndergaard Birkmose | F9: Dorthe Carstensen | H9: Post Doc | I9: 381 | K9: 840
A10: Institut for Statskundskab | B10: 5798000423312 | C10: 55600 | D10: STAT | E10: Signe Pihl-Thingvad | F10: Anette Schmidt/Ann Skovly | H10: Professor | I10: 608 | K10: 1340
H11: Professor, MSO | I11: 560 | K11: 1240 | L11: Gennemsnitspris SAMF
H12: Specialkonsulent | I12: 390 | K12: 860 | L12: Gennemsnitspris SAMF
A13: OH i % til beregning i denne aktivitet | B13: 1.17 | H13: Chefkonsulent | I13: 445 | K13: 980 | L13: Gennemsnitspris SAMF
H14: Seniorådgiver | I14: 420 | K14: 930 | L14: Gennemsnitspris SAMF
H15: Videnskabelig assistent | I15: 352 | K15: 780 | L15: Gennemsnitspris SAMF
H17: TAP-administration
H18: Stilling - kostpris tilrettet - 2024 priser | I18: KOST PRIS | K18: SDU OH %
K19: 1.2
H20: Vælg titel… | I20: 0 | K20: =CEILING(I20+(I20*($K$19)),10) -> 0
H21: AC, fuldmægtig | I21: 381 | K21: =CEILING(I21+(I21*($K$19)),10) -> 840
H22: HK, laborant | I22: 326 | K22: 720 | L22: Gennemsnitspris SAMF
H23: HK, sekretær | I23: 326 | K23: 720
H24: Chefkonsulent | I24: 460 | K24: 1020
H25: Specialkonsulent | I25: 405 | K25: 900
H26: Studentermedhjælp HK | I26: 160 | K26: 360 | L26: Gennemsnitspris SAMF
H29: Kilde: | I29: Prisblad for indtægtsdækket virksomhed (2024-priser)
H31: Tjek selv timepris i QlikView. Løn (Timepris)
H33: =+CONCATENATE("Overhead af direkte omkostninger ","(",Lopslag!I33*100," %",")") -> Overhead af direkte omkostninger (120 %) | I33: 1.2
H34: =+CONCATENATE("Overhead af konsulentomkostninger ","(",Lopslag!I34*100," %",")") -> Overhead af konsulentomkostninger (10 %) | I34: 0.1
